[Event "13th Chennai Open 2022"]
[Site "Chennai"]
[Date "2022.06.26"]
[Round "10.8"]
[White "Saravana, Krishnan P."]
[Black "Laxman, R.R."]
[Result "0-1"]
[ECO "C77"]
[WhiteElo "2269"]
[BlackElo "2420"]
[Annotator "TA"]
[PlyCount "36"]
[EventDate "2022.06.19"]
[EventType "swiss"]
[EventCountry "IND"]
[SourceTitle "playchess.com"]
[Source "ChessBase"]
[SourceQuality "1"]
[TimeControl "5400+30"]

{[%evp 13,36,21,20,22,13,-25,-8,-40,-49,-50,-39,-65,-75,-90,-50,-146,-155,-245,-225,-306,-301,-585,-600,-706,-692]} 1. e4 {[%emt 0:00:30]} e5 {[%emt 0:00:30]} 2. Nf3 {[%emt 0:00:30]} Nc6 {[%emt 0:00:30]} 3. Bb5 {[%emt 0:00:30]} a6 {[%emt 0:00:30]} 4. Ba4 {[%emt 0:00:30]} Nf6 {[%emt 0:00:30]} 5. d3 {[%emt 0:00:30]} Bc5 {[%emt 0:00:30]} 6. c3 {[%emt 0:00:30]} b5 {[%emt 0:00:30]} 7. Bb3 {[%emt 0:00:30] 7.Bb3 is better than 7.Bc2.} d6 {[%emt 0:00:30]} 8. Bg5 {[%emt 0:00:30] C77: Ruy Lopez: 3...a6 4 Ba4 Nf6, unusual lines.} h6 {[%emt 0:00:30]} 9. Bxf6 {[%emt 0:00:30]} Qxf6 {[%emt 0:00:30]} 10. Bd5 {[%emt 0:00:30] The position is equal.} Bd7 {[%emt 0:00:30]} 11. O-O {[%emt 0:00:30] [#]} Rd8 $146 {[%emt 0:00:30]} ({Predecessor:} 11... Rb8 12. Nbd2 Ne7 13. Bb3 O-O 14. a4 Ng6 15. axb5 axb5 16. Bc2 Nf4 17. Nb3 Bh3 {0-1 (58) Lampl,G-Virzi,E Ceriano Laghetto 2003}) 12. d4 {[%emt 0:00:30]} Bb6 {[%emt 0:00:30]} 13. dxe5 {[%emt 0:00:30]} dxe5 {[%emt 0:00:30] Hoping for ...Ne7.} 14. Nbd2 {[%emt 0:00:30]} (14. Bxc6 $15 Bxc6 15. Qc2) 14... Ne7 $17 {[%emt 0:00:30][%cal Bc6e7,Be7g6,Bg6f4][%mdl 32] Black is more active.} 15. Qc1 {[%emt 0:00:30]} (15. Bb7 $17) 15... Ng6 $19 {[%emt 0:00:30]} 16. Bb3 {[%emt 0:00:30]} Nf4 {[%emt 0:00:30]} 17. Bd1 $2 {[%emt 0:00:30] [#]} (17. Kh1) 17... Bh3 $1 {[%emt 0:00:30][%mdl 512]} 18. Ne1 {[%emt 0:00:30] [#]} (18. g3 Nd3) 18... Bxg2 $1 {[%emt 0:00:30][%mdl 512] White got outplayed after the opening.  Weighted Error Value: White=0.67/Black=0.01 (flawless)} 0-1

[Event "13th Chennai Open 2022"]
[Site "Chennai"]
[Date "2022.06.26"]
[Round "10.9"]
[White "Prasannaa.s"]
[Black "Nguyen, Duc Hoa"]
[Result "0-1"]
[ECO "B22"]
[WhiteElo "2164"]
[BlackElo "2398"]
[Annotator "TA"]
[PlyCount "112"]
[EventDate "2022.06.19"]
[EventType "swiss"]
[EventCountry "IND"]
[SourceTitle "playchess.com"]
[Source "ChessBase"]
[SourceQuality "1"]
[TimeControl "5400+30"]

{[%evp 14,111,8,0,26,-3,41,0,0,0,0,0,0,-10,0,-16,-16,-8,-17,-61,-49,-51,-39,-69,-84,-75,-70,-159,-129,-136,-149,-145,-119,-168,-164,-167,-140,-149,-143,-164,-147,-205,-178,-311,-305,-307,-307,-278,-257,-256,-251,-256,-256,-283,-283,-289,-233,-248,-183,-183,-188,-187,-187,-202,-168,-160,-175,-314,-314,-314,-305,-348,-179,-562,-561,-826,-787,-1006,-831,-833,-832,-823,-808,-741,-725,-741,-640,-690,-698,-1006,-975,-1013,-1001,-29992,-29993,-29994,-29995,-29995,-29996,-29999]} 1. e4 {[%emt 0:04:04]} c5 {[%emt 0:00:08]} 2. c3 {[%emt 0:00:08]} Nf6 {[%emt 0:02:25]} 3. e5 {[%emt 0:00:07]} Nd5 {[%emt 0:00:04]} 4. d4 {[%emt 0:00:03]} cxd4 {[%emt 0:00:13]} 5. Nf3 {[%emt 0:00:08]} d6 {[%emt 0:00:28]} 6. cxd4 {[%emt 0:00:19]} Nc6 {[%emt 0:01:03]} 7. Bc4 {[%emt 0:00:18]} Nb6 {[%emt 0:01:13]} 8. Bb5 {[%emt 0:00:08]} e6 {[%emt 0:01:06] B22: Sicilian: 2 c3.} 9. Nc3 {[%emt 0:00:08]} Be7 {[%emt 0:01:08] Inhibits Bg5.} 10. exd6 {[%emt 0:01:20]} Qxd6 {[%emt 0:00:24] The position is equal.} 11. O-O {[%emt 0:00:31]} O-O {[%emt 0:00:54]} 12. Be3 {[%emt 0:02:49]} Bd7 {[%emt 0:05:47] [#]} 13. a3 $146 {[%emt 0:02:39]} ({Predecessor:} 13. Qd2 Nd5 14. Nxd5 Qxd5 15. Bd3 Nb4 16. Bb1 Bb5 17. Rc1 Rac8 18. a3 Rxc1+ 19. Qxc1 {1-0 (60) Bulsoev,A (1828)-Isfandiyarli,K (1597) St Petersburg 2018}) 13... Nd5 {[%emt 0:02:12]} 14. Qd3 {[%emt 0:03:00]} Nxc3 {[%emt 0:10:01]} 15. bxc3 {[%emt 0:00:35]} Na5 {[%emt 0:02:22]} 16. Ne5 {[%emt 0:01:45]} Bxb5 {[%emt 0:00:44]} 17. Qxb5 {[%emt 0:00:04]} Qd5 {[%emt 0:00:25]} 18. Rfb1 {[%emt 0:02:49]} Qxb5 {[%emt 0:05:12] White is now going downhill.} 19. Rxb5 {[%emt 0:00:13]} b6 {[%emt 0:00:18]} 20. c4 {[%emt 0:04:11] [#]} ({White should play} 20. a4 $15) 20... f6 $1 $17 {[%emt 0:02:21]} 21. Rxa5 {[%emt 0:00:09]} bxa5 {[%emt 0:00:06]} 22. Nc6 {[%emt 0:00:04]} Kf7 {[%emt 0:02:17]} 23. a4 {[%emt 0:01:44]} (23. Nxa5 $17 {might work better.} Rfc8 24. g3) 23... Bb4 {[%emt 0:04:29]} 24. Kf1 {[%emt 0:02:05]} a6 {[%emt 0:00:46]} 25. Ke2 {[%emt 0:01:02]} Ke8 {[%emt 0:00:33]} 26. Kd3 {[%emt 0:03:02]} Kd7 {[%emt 0:00:20]} 27. d5 {[%emt 0:00:07]} (27. Nxb4 $17 {keeps fighting.} axb4 28. a5) 27... Rfe8 {[%emt 0:02:12]} 28. g4 {[%emt 0:01:44]} (28. Rc1 {was necessary.}) 28... exd5 $19 {[%emt 0:02:43]} 29. cxd5 {[%emt 0:00:28]} Kd6 {[%emt 0:00:07]} 30. Rb1 Kxd5 {[%emt 0:00:30]} 31. Nxb4+ axb4 {[%emt 0:00:30]} 32. Rxb4 {[%mdl 4096] Endgame KRR-KRB} Rab8 {[%emt 0:00:30] Against Rb7} 33. Bb6 Re1 {[%emt 0:00:30]} 34. a5 Rc8 {[%emt 0:00:30]} 35. Be3 Rd1+ {[%emt 0:00:30]} 36. Ke2 Ra1 {[%emt 0:00:30]} 37. Rb7 g5 {[%emt 0:00:30]} 38. Bb6 Ke4 {[%emt 0:00:30][%cal Rc8c2] [#]} 39. Re7+ Kf4 {[%emt 0:00:30]} 40. Rxh7 (40. h3 {was the only defense.} Rc2+ 41. Kd3) 40... Kxg4 {[%emt 0:00:30]} 41. h3+ Kf4 {[%emt 0:00:30]} 42. Ra7 f5 {[%emt 0:00:30]} (42... Rc2+ $142 43. Kd3 Rc6) 43. Rxa6 $2 (43. Be3+ {is a better chance.} Ke5 44. Bxg5) 43... Ke4 {[%emt 0:00:30][%cal Rc8c2]} 44. Be3 f4 {[%emt 0:00:30] ( -> ...Rc2+)} 45. f3+ Kd5 {[%emt 0:00:30]} 46. Bd2 Re8+ {[%emt 0:00:30]} 47. Kd3 Ra3+ {[%emt 0:00:30]} 48. Kc2 Re2 {[%emt 0:00:30] aiming for ...Ra2+.} 49. Ra8 Kc6 {[%emt 0:00:30] Hoping for ...Ra2+.} 50. Kd1 Rh2 {[%emt 0:00:30] And now ...Ra1+ would win.} 51. Rg8 Ra1+ {[%emt 0:00:30]} 52. Bc1 Raa2 {[%emt 0:00:30][%cal Rh2h1]} 53. Rg6+ Kd7 {[%emt 0:00:30][%cal Rh2h1] Black mates.} 54. Bd2 Raxd2+ {[%emt 0:00:30]} 55. Ke1 Ra2 {[%emt 0:00:30][%cal Rh2h1]} 56. Rxg5 Ra1# {[%emt 0:00:30] Weighted Error Value: White=0.59/Black=0.14 (very precise)} 0-1

[Event "13th Chennai Open 2022"]
[Site "Chennai"]
[Date "2022.06.26"]
[Round "10.10"]
[White "Hari Madhavan N B"]
[Black "Baghdasaryan, Vahe"]
[Result "1-0"]
[ECO "D10"]
[WhiteElo "2374"]
[BlackElo "2267"]
[Annotator "TA"]
[PlyCount "73"]
[EventDate "2022.06.19"]
[EventType "swiss"]
[EventCountry "IND"]
[SourceTitle "playchess.com"]
[Source "ChessBase"]
[SourceQuality "1"]
[TimeControl "5400+30"]

{[%evp 13,73,7,7,8,13,6,11,16,2,16,10,18,25,0,0,0,0,0,0,0,0,0,0,0,0,0,0,0,0,-12,-26,-11,-27,-13,-13,-82,-79,-78,-73,-78,0,-10,111,100,119,22,63,42,172,16,24,49,20,0,3256,0,29998,-100,495,453,2098,1997]} 1. d4 {[%emt 0:00:06]} d5 {[%emt 0:01:11]} 2. c4 {[%emt 0:00:03]} c6 {[%emt 0:00:08]} 3. cxd5 {[%emt 0:00:06]} cxd5 {[%emt 0:00:04]} 4. Nc3 {[%emt 0:00:05]} Nf6 {[%emt 0:00:04]} 5. Bf4 {[%emt 0:00:12]} Nc6 {[%emt 0:00:11]} 6. e3 {[%emt 0:00:07]} Bf5 {[%emt 0:00:50]} 7. Qb3 {[%emt 0:02:34]} Na5 {[%emt 0:05:30]} 8. Qa4+ {[%emt 0:00:06] D10: Slav Defence: 3 cxd5 (without early Nf3) and 3 Nc3.} Bd7 {[%emt 0:00:06]} 9. Qc2 {[%emt 0:07:03]} e6 {[%emt 0:00:31]} 10. Bd3 {[%emt 0:03:45] The position is equal.} Rc8 {[%emt 0:00:32]} 11. Nf3 {[%emt 0:06:59]} Bb4 {[%emt 0:01:28][%cal Of6e4] is recently more successful than 11...Be7.} 12. O-O {[%emt 0:00:09]} Nh5 {[%emt 0:05:27]} 13. Be5 {[%emt 0:00:22]} (13. Bg5 $5 {[%cal Rg5d8]} Nf6 14. Bxh7 $1 $14) 13... f6 {[%emt 0:06:34] [#]} 14. Bxh7 $146 {[%emt 0:14:50]} ({Predecessor:} 14. Bg3 Nxg3 15. hxg3 Nc4 16. a3 Bxc3 17. bxc3 Nd6 18. a4 g6 19. Nd2 O-O 20. Rfc1 {½-½ (66) Nakamura,H (2736)-Caruana,F (2835) chess24.com INT 2020}) 14... fxe5 {[%emt 0:01:09]} 15. Qg6+ {[%emt 0:01:22]} Kf8 {[%emt 0:00:10]} 16. Qxh5 {[%emt 0:01:02]} ({Avoid the trap} 16. Nxe5 $2 Be8 17. Qc2 (17. Qxe6 $2 Rxh7 18. Nxd5 Bd6 $19) 17... Nc4 18. Nxc4 Rxc4 $19) 16... Be8 {[%emt 0:00:21]} 17. Qh3 {[%emt 0:01:58] Strongly threatening Ne2.} Bxc3 18. bxc3 {[%emt 0:00:30]} Bg6 19. Qxe6 {[%emt 0:00:30]} Bxh7 20. Ng5 $40 {[%emt 0:00:30][%csl Gg5][%cal Re6f7][%mdl 128] White has some attack.} Rc7 {Inhibits Qf7+.} 21. Qxe5 {[%emt 0:00:30] Hoping for Ne6+.} Bg8 22. Qf4+ {[%emt 0:00:30]} Ke8 23. e4 {[%emt 0:00:30] And now Rae1 would win.} Nc4 24. Qg3 {[%emt 0:00:30]} (24. Rae1 $11 Qd6 25. e5 (25. exd5+ Kd8 $17)) 24... Rh5 $17 25. h4 {[%emt 0:00:30]} dxe4 26. Rfe1 {[%emt 0:00:30]} e3 (26... Nd6 $1 $17) 27. fxe3 $11 {[%emt 0:00:30]} Rc6 (27... Qd6 $11 28. Qg4 Rh6) 28. Rf1 $1 $16 {[%emt 0:00:30][%cal Og5e6][%mdl 1024] White has strong compensation.} Rhh6 {[#] Prevents Ne6.} 29. e4 {[%emt 0:00:30]} ({Better is} 29. Ne6 $1 $16 {[%mdl 512] Rf8+ would kill now.} Rhxe6 30. Qxg7) 29... Qc7 $11 30. e5 {[%emt 0:00:30] Black must now prevent Rf4. Dancing on a razor blade.} Rhf6 {[#]} 31. Ne4 $2 {[%emt 0:00:30]} (31. Qd3 $1 $18 Rxf1+ 32. Rxf1) 31... Rxf1+ 32. Rxf1 {[%emt 0:00:30][%cal Oe4f6] Threatens to win with Nf6+!} Bd5 33. Qf4 {[%emt 0:00:30] aiming for Qf8+.} Rh6 $2 {[%mdl 8192]} (33... Qe7 $11 34. Rf2 Rb6) 34. Nd6+ $2 {[%emt 0:00:30]} (34. Qf8+ $18 Kd7 35. Qxg7+ Kc6 36. Qxh6+ Kb5 37. Rb1+ Ka5 {[#]} 38. Qf8 $1) 34... Kd8 $2 {[%mdl 8192]} (34... Nxd6 $11 35. Qf8+ Kd7 36. Qxg7+ (36. exd6 Qxd6 37. Qxg7+ Kc6 $15) 36... Nf7 37. Rxf7+ Bxf7 38. Qxh6 (38. Qxf7+ Kc6 $17) 38... Bxa2) 35. h5 $2 {[%emt 0:00:30]} (35. Qf8+ {mates} Kd7 36. Qe8#) 35... Rh8 $2 {[%mdl 8192]} (35... Nxd6 $17 {keeps the pressure on.} 36. exd6 Qxd6 37. Qg5+ Ke8) 36. h6 $18 {[%emt 0:00:30]} Nxd6 (36... Qe7 $142 37. Nf7+ Qxf7 38. Qxf7 Bxf7) 37. exd6 {[%emt 0:00:30] Weighted Error Value: White=0.48/Black=0.52} 1-0

[Event "13th Chennai Open 2022"]
[Site "Chennai"]
[Date "2022.06.26"]
[Round "10.11"]
[White "Vignesh B"]
[Black "Karthikeyan, P.."]
[Result "0-1"]
[ECO "A34"]
[WhiteElo "2072"]
[BlackElo "2361"]
[Annotator "TA"]
[PlyCount "100"]
[EventDate "2022.06.19"]
[EventType "swiss"]
[EventCountry "IND"]
[SourceTitle "playchess.com"]
[Source "ChessBase"]
[SourceQuality "1"]
[TimeControl "5400+30"]

{[%evp 9,99,-16,14,17,27,23,9,8,9,9,14,10,14,0,13,15,10,0,0,0,0,0,0,0,0,0,15,0,0,-21,-17,-17,0,-11,0,-16,0,-22,-14,-12,-26,-50,-12,-13,0,0,0,0,0,-19,-11,-25,0,-7,0,0,0,0,0,0,0,-16,147,159,175,87,189,0,0,0,0,-105,-86,-311,-256,-235,0,-536,-515,-716,-406,-514,-482,-29976,-29977,-29991,-29992,-29996,-29997,-29997,-29998,-29999]} 1. e4 {[%emt 0:03:25]} c5 {[%emt 0:01:11]} 2. Nf3 {[%emt 0:00:07]} e6 {[%emt 0:00:49]} 3. c4 {[%emt 0:00:44]} Nc6 {[%emt 0:01:50]} 4. Nc3 {[%emt 0:08:12]} Nf6 {[%emt 0:03:29]} 5. h3 {[%emt 0:01:38]} Qc7 {[%emt 0:00:40]} 6. Be2 {[%emt 0:00:30] A34: Symmetrical English: 2 Nc3, lines with ...d5.} a6 {[%emt 0:00:31]} 7. O-O {[%emt 0:00:33]} b6 {[%emt 0:06:46]} 8. Re1 {[%emt 0:12:28] The position is equal.} Bd6 {[%emt 0:02:32]} 9. d3 {[%emt 0:02:35]} Bb7 {[%emt 0:03:13]} 10. Be3 {[%emt 0:00:52]} O-O {[%emt 0:06:21] [#]} 11. Rc1 $146 {[%emt 0:02:19]} ({Predecessor:} 11. a3 h6 12. Rc1 Ne7 13. Bf1 Rad8 14. b4 Ng6 15. Na4 Rb8 16. Qd2 Rfe8 17. bxc5 bxc5 {½-½ (56) Gerard,A (1979)-Durandal,J (2028) ICCF email 2015}) 11... Ne7 {[%emt 0:02:35]} 12. Qc2 {[%emt 0:10:03]} Ng6 {[%emt 0:01:08]} 13. d4 {[%emt 0:16:49]} cxd4 {[%emt 0:01:54]} 14. Bxd4 {[%emt 0:02:22]} Bf4 {[%emt 0:06:12]} 15. Rcd1 {[%emt 0:03:43]} e5 {[%emt 0:00:15]} 16. Be3 {[%emt 0:00:40]} Bxe3 {[%emt 0:00:20]} 17. fxe3 {[%emt 0:00:05]} Qc5 {[%emt 0:07:23]} 18. Bf1 {[%emt 0:00:10]} Bc6 {[%emt 0:00:52]} 19. Nd5 {[%emt 0:12:14]} Bxd5 {[%emt 0:02:21]} 20. exd5 {[%emt 0:00:03]} d6 {[%emt 0:01:20]} 21. a3 {[%emt 0:03:35]} a5 {[%emt 0:01:37]} 22. Qa4 {[%emt 0:04:45]} Rfc8 {[%emt 0:04:05]} 23. Kh2 {[%emt 0:00:55]} Qc7 {[%emt 0:06:30]} 24. Rc1 {[%emt 0:05:58]} Nd7 {[%emt 0:03:04]} 25. Qd1 {[%emt 0:01:33]} a4 {[%emt 0:00:28]} (25... e4 $5 {[%cal Re4f3]} 26. Nd4 Nge5 $15) 26. Bd3 {[%emt 0:00:07]} Ngf8 {[%emt 0:04:49]} 27. Rf1 {[%emt 0:02:07]} Qd8 {[%emt 0:00:48]} 28. Bc2 {[%emt 0:01:16]} Nc5 {[%emt 0:01:39]} 29. Qe1 {[%emt 0:00:53]} Rc7 {[%emt 0:04:01]} 30. Qg3 {[%emt 0:01:00]} h6 {[%emt 0:00:47]} 31. Rf2 {[%emt 0:03:05]} b5 {[%emt 0:01:45]} 32. cxb5 {[%emt 0:00:01]} Ne4 {[%emt 0:00:40]} 33. Bxe4 {[%emt 0:00:05]} Rxc1 {[%emt 0:00:06]} 34. Nh4 $1 {[%emt 0:00:37]} Qg5 {[%emt 0:02:11]} 35. Qf3 {[%emt 0:01:54]} f6 {[%emt 0:15:27]} (35... Rc7 $11 36. Nf5 Qf6) 36. Nf5 $16 {[%emt 0:00:02]} h5 {[%emt 0:00:01][%cal Bh6h5,Bh5h4][%mdl 32]} 37. Nxd6 {[%emt 0:00:48]} (37. g3 $1 $18) 37... Rb8 {[%emt 0:00:29]} (37... h4 $16) 38. Qe2 $2 {[%emt 0:00:43]} (38. Rc2 $18 Rxc2 39. Bxc2) 38... h4 $1 $11 {[%emt 0:00:45][%csl Gh4][%cal Rg5g3] Chess con chili.} 39. Rf3 {[%emt 0:00:31] Against Qg3+. Hoping for Qd2.} g6 $1 {[%emt 0:00:37]} 40. Bc2 {[%emt 0:00:31]} (40. Qd2 $11 Rc7 41. g4) 40... f5 {[%emt 0:03:15] White must now prevent ...e4.} 41. Bxf5 {[%emt 0:00:16]} gxf5 $19 {[%emt 0:00:30]} 42. Nxf5 {[%emt 0:00:02] [#]} Ng6 $2 {[%emt 0:00:41]} ({Black should play} 42... Rbc8 $1 $19 {[%cal Rc8c2] Threatens to win with ...R8c2.} 43. Rf2 Nd7) 43. d6 $2 {[%emt 0:00:30][%mdl 8192] [#]} (43. Qd3 $1 $11) 43... e4 $1 {[%emt 0:00:57]} 44. Rf2 {[%emt 0:00:01]} Rf8 {[%emt 0:00:37]} 45. d7 {[%emt 0:01:34] Qd2 is the strong threat.} Ne5 {[%emt 0:02:29]} ({Not} 45... Rxf5 46. Qg4 Qxg4 47. d8=Q+ Kg7 48. hxg4 $11) 46. Nh6+ {[%emt 0:00:36]} (46. b6 $19 Nd3 47. Rf1 Rxf1 48. Qxf1) 46... Qxh6 {[%emt 0:00:43] Black mates.} 47. Rxf8+ {[%emt 0:00:03]} Qxf8 {[%emt 0:00:12]} 48. Qd2 {[%emt 0:00:01] [#]} Ng4+ $1 {[%emt 0:00:53]} 49. hxg4 {[%emt 0:00:04]} Qb8+ {[%emt 0:00:05]} 50. Kh3 {[%emt 0:00:09]} Qg3# {[%emt 0:00:02] Weighted Error Value: White=0.56/Black=0.24 (precise)} 0-1

[Event "13th Chennai Open 2022"]
[Site "Chennai"]
[Date "2022.06.26"]
[Round "10.12"]
[White "Daakshin Arun"]
[Black "Konguvel, Ponnuswamy"]
[Result "1/2-1/2"]
[ECO "E61"]
[WhiteElo "2016"]
[BlackElo "2331"]
[Annotator "TA"]
[PlyCount "60"]
[EventDate "2022.06.19"]
[EventType "swiss"]
[EventCountry "IND"]
[SourceTitle "playchess.com"]
[Source "ChessBase"]
[SourceQuality "1"]
[TimeControl "5400+30"]

{[%evp 15,60,7,47,0,35,6,6,0,-15,-14,9,4,57,54,59,0,0,0,0,0,27,28,40,0,0,0,0,0,0,0,0,0,2,0,0,0,0,0,0,0,0,0,0,0,-4,-166,0]} 1. d4 {[%emt 0:00:03]} Nf6 {[%emt 0:00:17]} 2. c4 {[%emt 0:00:06]} g6 {[%emt 0:00:17]} 3. Nc3 {[%emt 0:00:06]} Bg7 {[%emt 0:00:21]} 4. Nf3 {[%emt 0:00:08]} O-O {[%emt 0:00:24]} 5. Bg5 {[%emt 0:00:05]} d6 {[%emt 0:01:53]} 6. e3 {[%emt 0:00:07]} h6 {[%emt 0:03:31]} 7. Bh4 {[%emt 0:00:07]} c5 {[%emt 0:00:54]} 8. d5 {[%emt 0:00:18]} a6 {[%emt 0:06:39][%cal Ob7b5]} 9. Be2 {[%emt 0:07:59] E61: King's Indian: Early deviations for White, including Smyslov System.} (9. Nd2 $14) 9... Nbd7 {[%emt 0:04:56][%cal Ob7b5]} 10. Qc2 {[%emt 0:02:18] [#]} b5 $146 {[%emt 0:30:30]} ({Predecessor:} 10... Rb8 11. a4 Qa5 12. O-O Re8 13. Rfe1 Nf8 14. e4 g5 15. Bg3 Ng6 16. e5 Nh5 {1-0 (32) Ovezdurdiyeva,J (2061)-Nurmanova,A (2026) Chess.com INT 2020}) 11. cxb5 {[%emt 0:01:37] The position is equal.} Qa5 {[%emt 0:03:15] aiming for ...Nxd5.} 12. O-O {[%emt 0:02:05]} axb5 {[%emt 0:00:42]} 13. Bxb5 {[%emt 0:03:32]} Nb6 {[%emt 0:01:26]} ({Better is} 13... Ba6 $11 14. Bxf6 Nxf6 15. Bxa6 Qxa6) 14. Bc6 $14 {[%emt 0:10:39]} Rb8 {[%emt 0:03:48]} 15. Nd2 {[%emt 0:03:47] Inhibits Nc4.} (15. a4 $1 $14) 15... Bb7 $11 {[%emt 0:07:24]} 16. Bxb7 {[%emt 0:04:04]} Rxb7 {[%emt 0:00:02]} 17. e4 {[%emt 0:05:03]} g5 {[%emt 0:03:33]} 18. Bg3 {[%emt 0:00:50]} Nh5 {[%emt 0:00:06]} 19. Rfb1 {[%emt 0:02:48]} Ra8 {[%emt 0:00:48]} 20. a4 {[%emt 0:05:33]} Nxg3 {[%emt 0:08:18]} 21. hxg3 {[%emt 0:00:07]} Qb4 {[%emt 0:07:19]} 22. Rd1 {[%emt 0:11:28]} Rba7 {[%emt 0:04:05][%cal Rb6a4]} 23. Ra2 {[%emt 0:04:19]} Nc4 {[%emt 0:02:04]} 24. Nxc4 {[%emt 0:05:23]} Qxc4 {[%emt 0:00:02]} 25. Rda1 {[%emt 0:01:35]} Ra5 {[%emt 0:00:03]} 26. Ra3 {[%emt 0:00:53]} Rb8 {[%emt 0:00:05]} 27. Qd2 {[%emt 0:01:41]} Rb4 {[%emt 0:00:38]} 28. Qc2 {[%emt 0:02:31]} Be5 {[%emt 0:01:40]} 29. Kh1 {[%emt 0:01:54]} Kg7 {[%emt 0:00:32]} 30. R1a2 $2 {[%emt 0:01:56] [#]} (30. Kg1 $11 {and White has nothing to worry.}) 30... Kg8 $2 {[%emt 0:04:23] Weighted Error Value: White=0.25 (precise) /Black=0.09 (flawless)} (30... f5 $1 $19 31. Kh2 fxe4) 1/2-1/2

[Event "13th Chennai Open 2022"]
[Site "Chennai"]
[Date "2022.06.26"]
[Round "10.13"]
[White "Pawar, Harshit"]
[Black "Aaryan Varshney"]
[Result "1/2-1/2"]
[ECO "D02"]
[WhiteElo "1961"]
[BlackElo "2308"]
[Annotator "TA"]
[PlyCount "63"]
[EventDate "2022.06.19"]
[EventType "swiss"]
[EventCountry "IND"]
[SourceTitle "playchess.com"]
[Source "ChessBase"]
[SourceQuality "1"]
[TimeControl "5400+30"]

{[%evp 15,63,52,51,41,0,-21,-23,-29,-36,-22,-16,-45,-21,-63,-40,-68,-56,-69,-59,-71,-68,-72,-60,-68,-47,-34,35,26,48,4,4,4,3,0,9,14,17,19,10,0,2,12,18,0,15,0,19,0,15,0]} 1. d4 {[%emt 0:00:07]} Nf6 {[%emt 0:00:07]} 2. g3 {[%emt 0:00:04]} d5 {[%emt 0:00:24]} 3. Bg2 {[%emt 0:00:02]} c5 {[%emt 0:00:24]} 4. Nf3 {[%emt 0:00:10]} cxd4 {[%emt 0:11:44]} 5. O-O {[%emt 0:00:02]} Nc6 {[%emt 0:00:28]} 6. Nxd4 {[%emt 0:00:02]} e5 {[%emt 0:00:30]} 7. Nxc6 {[%emt 0:00:03]} bxc6 {[%emt 0:00:07]} 8. c4 {[%emt 0:00:04]} Be6 {[%emt 0:00:16]} 9. Nc3 {[%emt 0:01:40] D02: 1 d4 d5 2 Nf3 sidelines, including 2...Nf6 3 g3 and 2...Nf6 3 Bf4.} Rc8 {[%emt 0:00:24]} 10. Qa4 {[%emt 0:04:57] [#] cxd5 is the strong threat.} d4 {[%emt 0:01:36]} 11. Ne4 {[%emt 1:28:49] Black has an edge.} Nxe4 {[%emt 0:00:32]} 12. Bxe4 {[%emt 0:00:00]} Qd7 {[%emt 0:00:59] [#]} 13. Bg2 $146 {[%emt 0:00:00]} ({Predecessor:} 13. f4 f5 14. Bg2 e4 15. b3 c5 16. Qxd7+ Bxd7 17. e3 Be7 18. Bb2 Bf6 19. Rfd1 {½-½ (77) Adly,A (2615)-Thybo,J (2590) Chess.com INT 2020}) 13... c5 {[%emt 0:06:51]} 14. Qa6 {[%emt 0:00:00]} Bd6 {[%emt 0:04:10]} 15. Bd2 {[%emt 0:00:00]} O-O {[%emt 0:01:20]} 16. b3 {[%emt 0:00:00]} f5 {[%emt 0:09:16]} 17. Rad1 {[%emt 0:00:00]} e4 {[%emt 0:03:30]} 18. e3 {[%emt 0:00:00]} Rc6 {[%emt 0:02:17]} 19. Qa3 {[%emt 0:00:00]} Qb7 {[%emt 0:08:15]} 20. Qc1 {[%emt 0:00:00]} Rcc8 {[%emt 0:06:32] [#]} (20... Bf7 $15) 21. Bc3 $1 {[%emt 0:00:00]} Bxg3 {[%emt 0:04:12] And now ...Bb8 would win.} (21... f4 22. exd4) 22. hxg3 {[%emt 0:00:00]} dxc3 {[%emt 0:00:07] The position is equal.} 23. Qxc3 {[%emt 0:00:00]} Qc7 {[%emt 0:00:29] Inhibits Rd6.} 24. Rd2 {[%emt 0:00:00]} Rfd8 {[%emt 0:00:48]} 25. Rfd1 {[%emt 0:00:00]} Rxd2 {[%emt 0:01:16]} 26. Qxd2 {[%emt 0:00:00]} Kf7 {[%emt 0:00:53]} 27. Bh3 {[%emt 0:00:00]} Ke7 {[%emt 0:01:46]} 28. Qc3 {[%emt 0:00:00]} Kf7 {[%emt 0:00:58]} 29. Qd2 {[%emt 0:00:00]} Ke7 {[%emt 0:17:29]} 30. Qc3 {[%emt 0:00:00]} Kf7 {[%emt 0:02:03]} 31. Qd2 {[%emt 0:00:00]} Ke7 {[%emt 0:02:02]} 32. Qc3 {[%emt 0:00:00] Weighted Error Value: White=0.12 (very precise) /Black=0.09 (flawless)} 1/2-1/2